bitfinex-derivatives/quotes_BTCF0:USTF0_20241231
["timestamp","ask_amount","ask_price","bid_price","bid_amount"]
[1735607763236,0.17272516,92295.0,92294.0,0.00105824]
[1735607763744,0.01104286,92295.0,92294.0,0.00105824]
[1735607763943,0.054268,92296.0,92294.0,0.00105824]
[1735607765745,0.054268,92296.0,92294.0,5.824e-05]
[1735607765946,0.055268,92296.0,92294.0,5.824e-05]
[1735607766137,0.06599289,92296.0,92294.0,5.824e-05]
[1735607767744,0.06699289,92296.0,92294.0,5.824e-05]
[1735607768047,0.06599289,92296.0,92294.0,5.824e-05]
[1735607768547,0.06599289,92296.0,92294.0,0.00105824]
[1735607769151,0.06599289,92296.0,92294.0,5.824e-05]
[1735607769448,0.06699289,92296.0,92294.0,5.824e-05]
[1735607769647,0.06599289,92296.0,92294.0,5.824e-05]
[1735607770944,0.06499289,92296.0,92294.0,0.00105824]
[1735607772339,0.06499289,92296.0,92294.0,5.824e-05]
[1735607773050,0.06599289,92296.0,92294.0,5.824e-05]
[1735607773947,0.01172489,92296.0,92294.0,5.824e-05]
[1735607774160,0.19332845,92308.0,92306.0,0.054262]
[1735607774347,0.19332845,92308.0,92307.0,0.1216]
[1735607774550,0.09572845,92308.0,92307.0,0.1216]
[1735607774951,0.09572845,92313.0,92308.0,0.054261]
[1735607775246,0.09572845,92313.0,92312.0,0.415058]
[1735607775848,0.09572845,92313.0,92312.0,1.915058]
[1735607776049,0.11298861,92330.0,92312.0,1.8608]
[1735607776260,0.054252,92324.0,92316.0,0.054256]
[1735607776757,0.054252,92324.0,92317.0,0.054255]
[1735607777556,0.054252,92324.0,92319.0,0.054254]
[1735607777753,0.058252,92324.0,92320.0,0.3608]
[1735607778350,0.013,92324.0,92322.0,0.054252]
[1735607780061,0.01102206,92334.0,92321.0,0.054253]
[1735607780248,0.48688,92339.0,92329.0,0.3608]
[1735607780557,0.48612,92339.0,92337.0,0.054243]
[1735607780748,0.48612,92339.0,92338.0,0.0599]
[1735607781145,0.17698861,92360.0,92338.0,0.4207]
[1735607781351,0.11298861,92360.0,92347.0,0.3608]
[1735607781650,0.11298861,92360.0,92354.0,0.054233]
[1735607781854,0.12406905,92360.0,92348.0,1.5]
[1735607782051,0.01108044,92360.0,92356.0,0.054232]
[1735607782363,0.0593,92365.0,92356.0,0.415032]
[1735607782861,0.003,92360.0,92356.0,0.415032]
[1735607783455,0.003,92360.0,92356.0,0.416032]
[1735607784662,0.07044353,92365.0,92356.0,0.417032]
[1735607784663,0.07544353,92365.0,92356.0,0.417032]
[1735607785060,0.07044353,92365.0,92356.0,0.416032]
[1735607785266,0.01114353,92365.0,92356.0,0.418032]
[1735607785454,0.054225,92370.0,92356.0,0.418032]
[1735607786071,0.4248,92372.0,92361.0,0.054229]
[1735607786365,0.054216,92385.0,92372.0,0.054223]
[1735607786562,0.48664,92386.0,92370.0,0.11298861]
[1735607786866,0.48596,92386.0,92381.0,0.3608]
[1735607787667,0.49679512,92386.0,92381.0,0.3608]
[1735607787861,0.49679512,92386.0,92382.0,0.054217]
[1735607788063,0.3608,92393.0,92385.0,0.054216]
[1735607788256,0.113102,92409.0,92381.0,0.4226]
[1735607788257,0.113102,92409.0,92394.0,0.05421]
[1735607789566,0.054202,92409.0,92397.0,0.054208]
[1735607790365,0.11110697,92400.0,92397.0,0.054208]
[1735607790565,0.00068,92413.0,92412.0,0.0542]
[1735607790765,0.00068,92413.0,92412.0,0.415]
[1735607790766,0.01089601,92413.0,92412.0,0.415]
[1735607790965,0.0649,92429.0,92412.0,0.415]
[1735607791271,0.0649,92429.0,92419.0,0.11298861]
[1735607791471,0.07566443,92429.0,92413.0,1.50056]
[1735607791664,0.07566443,92429.0,92413.0,1.5]
[1735607791860,0.3608,92416.0,92401.0,0.054206]
[1735607792061,0.3608,92416.0,92341.0,0.38794445]
[1735607792062,0.47378861,92407.0,92380.0,0.0586]
[1735607792370,0.47378861,92407.0,92365.0,0.3608]
[1735607792371,0.054219,92379.0,92373.0,0.25842208]
[1735607792575,0.054222,92375.0,92373.0,0.23138277]
[1735607792772,0.054222,92375.0,92373.0,0.13388277]
[1735607793069,0.0588,92374.0,92373.0,0.03548277]
[1735607793269,0.054222,92375.0,92373.0,0.03548277]
[1735607793770,0.3608,92380.0,92364.0,0.054228]
[1735607794071,0.37163512,92380.0,92367.0,0.0645]
[1735607794480,0.37163512,92380.0,92373.0,0.001]
[1735607794669,0.054222,92375.0,92373.0,0.001]
[1735607795271,0.055222,92375.0,92373.0,0.001]
[1735607795660,0.001,92375.0,92367.0,0.0685]
[1735607795863,0.3608,92372.0,92367.0,0.004]
[1735607796070,0.054227,92366.0,92348.0,0.0645]
[1735607796272,0.3608,92356.0,92348.0,0.0645]
[1735607796471,0.054232,92358.0,92348.0,0.0645]
[1735607796664,0.054232,92358.0,92352.0,0.3608]
[1735607797365,0.3608,92368.0,92353.0,0.054234]
[1735607797965,0.3608,92368.0,92355.0,0.054233]
[1735607798566,0.3608,92368.0,92357.0,0.054232]
[1735607798970,0.3608,92368.0,92359.0,0.054231]
[1735607799173,0.001,92368.0,92366.0,0.3608]
[1735607799368,0.001,92368.0,92367.0,1.5]
[1735607799868,0.3608,92376.0,92367.0,1.5]
[1735607799869,0.054224,92372.0,92367.0,1.5]
[1735607801486,0.05423,92360.0,92359.0,0.004]
[1735607802166,0.054236,92350.0,92349.0,1.5]
[1735607802673,0.3608,92350.0,92335.0,0.0597]
[1735607802878,0.47378861,92350.0,92335.0,0.0597]
[1735607803077,0.054237,92349.0,92335.0,0.113945]
[1735607803277,0.3608,92350.0,92349.0,0.004]
[1735607803474,0.3608,92360.0,92349.0,0.058237]
[1735607804080,0.3608,92360.0,92350.0,1.573]
[1735607804578,0.3608,92360.0,92352.0,0.054235]
[1735607806178,0.3608,92360.0,92352.0,0.059235]
[1735607806376,0.3608,92360.0,92352.0,0.005]
[1735607806677,0.06524723,92366.0,92353.0,0.054234]
[1735607806883,0.054227,92366.0,92359.0,0.3608]
[1735607807579,0.054227,92366.0,92353.0,0.054234]
[1735607808173,0.49715739,92367.0,92358.0,0.3608]
[1735607808174,0.48644,92367.0,92358.0,0.3608]
[1735607808483,0.48572,92367.0,92360.0,0.05423]
[1735607809284,0.48572,92367.0,92362.0,0.054229]
[1735607810082,0.48572,92367.0,92363.0,1.5]
[1735607810785,0.48572,92367.0,92366.0,0.054227]
[1735607812476,0.48772,92367.0,92366.0,0.054227]
[1735607813081,0.002,92367.0,92366.0,0.415027]
[1735607813379,0.054215,92386.0,92378.0,0.054219]
[1735607814483,0.3608,92390.0,92375.0,0.3608]
[1735607814681,0.3608,92400.0,92391.0,0.054212]
[1735607814887,0.415007,92400.0,92392.0,0.0748]
[1735607815673,0.3608,92400.0,92395.0,0.05421]
[1735607815880,0.3608,92400.0,92399.0,0.054207]
[1735607816179,0.007,92400.0,92399.0,1.915007]
[1735607817085,0.009,92400.0,92399.0,1.915007]
[1735607817474,0.004,92400.0,92399.0,1.915007]
[1735607817679,0.011,92400.0,92399.0,1.915007]
[1735607818075,0.011,92400.0,92399.0,1.916007]
[1735607818076,0.004,92400.0,92399.0,1.916007]
[1735607818280,0.012,92400.0,92399.0,1.916007]
[1735607818487,0.012,92400.0,92399.0,1.991007]
[1735607818683,0.48572,92413.0,92399.0,1.9368]
[1735607818881,0.49654688,92413.0,92411.0,0.0542]
[1735607819087,0.49654688,92413.0,92412.0,0.3608]
[1735607820189,0.50254688,92413.0,92412.0,0.3608]
[1735607820692,0.50454688,92413.0,92412.0,0.3608]
[1735607820892,0.50454688,92413.0,92412.0,0.3628]
[1735607821195,0.48572,92413.0,92412.0,0.3628]
[1735607821393,0.48672,92413.0,92412.0,0.3688]
[1735607822083,0.001,92413.0,92412.0,0.3688]
[1735607822285,0.001,92413.0,92412.0,0.009]
[1735607823495,0.01085623,92416.0,92412.0,0.003]
[1735607823793,0.001,92413.0,92412.0,0.0632]
[1735607824402,0.3608,92432.0,92430.0,0.054189]
[1735607824696,0.37189323,92432.0,92430.0,0.054189]
[1735607824897,0.01109323,92432.0,92430.0,0.054189]
[1735607825096,0.3608,92439.0,92431.0,1.5]
[1735607825594,0.3608,92439.0,92435.0,0.054186]
[1735607825789,0.37173089,92439.0,92435.0,0.054186]
[1735607826184,0.37273089,92439.0,92435.0,0.054186]
[1735607826402,0.3618,92439.0,92435.0,0.054186]
[1735607826984,0.3628,92439.0,92435.0,0.054186]
[1735607828290,0.3678,92439.0,92435.0,0.054186]
[1735607830802,0.3678,92439.0,92427.0,0.3608]
[1735607830987,0.3678,92439.0,92403.0,0.3608]
[1735607830988,0.3608,92428.0,92403.0,0.3608]
[1735607831189,0.3608,92428.0,92401.0,0.0718]
[1735607831190,0.3608,92419.0,92401.0,0.0718]
[1735607831400,0.0542,92412.0,92403.0,0.3608]
[1735607831800,0.054201,92410.0,92401.0,0.0718]
[1735607832595,0.054201,92410.0,92405.0,0.009]
[1735607832795,0.054201,92410.0,92406.0,1.5]
[1735607833196,0.054203,92407.0,92406.0,1.5]
[1735607833398,0.054213,92391.0,92382.0,0.0751]
[1735607833596,0.054213,92390.0,92382.0,0.0751]
[1735607833903,0.11298861,92392.0,92383.0,1.5]
[1735607833904,0.054216,92385.0,92383.0,1.5]
[1735607834096,0.3608,92384.0,92383.0,1.5]
[1735607834708,0.001,92390.0,92383.0,1.8608]
[1735607834999,0.001,92390.0,92389.0,0.054213]
[1735607835203,0.84628,92402.0,92383.0,1.86136]
[1735607835501,0.054208,92399.0,92392.0,0.054211]
[1735607835896,0.84696,92402.0,92392.0,0.054211]
[1735607836092,0.84696,92402.0,92393.0,0.0751]
[1735607836298,0.84628,92402.0,92393.0,0.0751]
[1735607836598,0.84628,92402.0,92393.0,0.12931]
[1735607836795,0.84628,92402.0,92394.0,0.05421]
[1735607837598,0.84728,92402.0,92394.0,0.05421]
[1735607837804,0.84728,92402.0,92396.0,0.054209]
[1735607838002,0.84728,92402.0,92383.0,1.8618]
[1735607838201,0.415012,92392.0,92383.0,1.8618]
[1735607838395,0.3608,92392.0,92383.0,1.501]
[1735607838601,0.054216,92385.0,92383.0,1.5]
[1735607839507,0.054216,92385.0,92383.0,1.502]
[1735607840304,0.054217,92384.0,92383.0,0.002]
[1735607840805,0.054217,92384.0,92383.0,1.506]
[1735607841306,0.054217,92384.0,92383.0,1.502]
[1735607841608,0.054217,92384.0,92353.0,0.3608]
[1735607841609,0.054234,92355.0,92353.0,0.3608]
[1735607842308,0.054235,92352.0,92334.0,0.054245]
[1735607842493,0.11298861,92351.0,92334.0,0.054245]
[1735607842699,0.11298861,92351.0,92341.0,1.69427086]
[1735607842700,0.054236,92350.0,92341.0,1.69427086]
[1735607843307,0.054236,92350.0,92341.0,1.5]
[1735607843805,0.054236,92350.0,92342.0,0.05424]
[1735607844006,0.3608,92354.0,92341.0,1.50056]
[1735607844203,0.3608,92354.0,92349.0,0.054236]
[1735607844508,0.001,92350.0,92349.0,0.054236]
[1735607846102,0.001,92350.0,92349.0,1.554236]
[1735607846608,0.001,92350.0,92349.0,1.558236]
[1735607846808,0.11298861,92360.0,92349.0,1.505]
[1735607847104,0.054236,92351.0,92349.0,1.505]
[1735607847799,0.054236,92351.0,92349.0,1.504]
[1735607848000,0.001,92350.0,92349.0,1.501]
[1735607848200,0.001,92350.0,92349.0,1.505]
[1735607848495,0.3,92350.0,92329.0,0.3608]
[1735607848809,0.054251,92325.0,92316.0,0.19427086]
[1735607849004,0.054256,92317.0,92316.0,0.19427086]
[1735607850104,0.054256,92317.0,92306.0,1.5]
[1735607850305,0.11298861,92316.0,92306.0,1.5]
[1735607852302,0.054256,92317.0,92306.0,1.502]
[1735607853009,0.054256,92317.0,92306.0,1.5]
[1735607853210,0.001,92316.0,92306.0,1.5]
[1735607853912,0.054256,92317.0,92305.0,0.054262]
[1735607854606,0.001,92316.0,92315.0,1.5]
[1735607855009,0.48636,92327.0,92315.0,1.5]
[1735607855305,0.48568,92327.0,92323.0,0.054252]
[1735607855701,0.48568,92327.0,92316.0,0.0756]
[1735607855702,0.36148,92340.0,92320.0,0.3608]
[1735607855906,0.3608,92340.0,92338.0,0.054243]
[1735607856108,0.3608,92340.0,92339.0,0.0756]
[1735607856810,0.48656,92350.0,92345.0,0.054239]
[1735607857009,0.48588,92350.0,92346.0,1.5]
[1735607858206,0.48588,92350.0,92346.0,1.501]
[1735607859511,0.48588,92350.0,92346.0,1.502]
[1735607859710,0.48588,92350.0,92346.0,1.503]
[1735607860118,0.48588,92350.0,92346.0,1.502]
[1735607861619,0.48588,92350.0,92346.0,0.002]
[1735607862418,0.054238,92348.0,92346.0,0.002]
[1735607862611,0.054238,92348.0,92300.0,0.65736724]
[1735607862612,0.415038,92348.0,92320.0,0.0767]
[1735607862812,0.3608,92328.0,92320.0,0.0767]
[1735607863117,0.415049,92328.0,92320.0,0.0767]
[1735607863919,0.415049,92328.0,92322.0,0.001]
[1735607865118,0.054245,92335.0,92326.0,0.05425]
[1735607865711,0.054245,92335.0,92320.0,0.0767]
[1735607865911,0.3608,92348.0,92336.0,0.054244]
[1735607866211,0.3608,92338.0,92328.0,0.054249]
[1735607866521,0.3608,92338.0,92329.0,0.054248]
[1735607866721,0.054245,92336.0,92329.0,0.054248]
[1735607867523,0.3618,92338.0,92330.0,0.054247]
[1735607867914,0.3618,92338.0,92331.0,0.0705]
[1735607868412,0.3618,92338.0,92332.0,1.5]
[1735607868607,0.054245,92335.0,92332.0,1.5]
[1735607868927,0.054246,92334.0,92332.0,1.5]
[1735607869824,0.054246,92334.0,92332.0,1.501]
[1735607870017,0.054246,92334.0,92332.0,1.502]
[1735607870223,0.3608,92338.0,92332.0,1.502]
[1735607871723,0.37193037,92338.0,92334.0,0.19427086]
[1735607872120,0.01113037,92338.0,92334.0,0.24851586]
[1735607872337,0.3608,92346.0,92335.0,0.054245]
[1735607872708,0.3608,92346.0,92334.0,0.19427086]
[1735607872918,0.48656,92350.0,92340.0,0.3608]
[1735607873124,0.48588,92350.0,92347.0,0.054238]
[1735607873414,0.48588,92350.0,92348.0,0.0718]
[1735607873623,0.48588,92350.0,92349.0,0.054237]
[1735607874119,0.48588,92350.0,92348.0,0.0718]
[1735607874607,0.48588,92350.0,92345.0,0.19427086]
[1735607874808,0.054238,92346.0,92345.0,0.19427086]
[1735607875820,0.05424,92344.0,92343.0,0.19427086]
[1735607876013,0.41504,92344.0,92343.0,0.19427086]
[1735607876815,0.054242,92340.0,92339.0,0.19427086]
[1735607877417,0.415042,92340.0,92339.0,0.19427086]
[1735607878217,0.054245,92335.0,92334.0,0.19427086]
[1735607879320,0.3648,92340.0,92327.0,0.19427086]
[1735607879522,0.3608,92328.0,92327.0,0.19427086]
[1735607880316,0.3608,92328.0,92327.0,0.24852086]
[1735607880821,0.3608,92328.0,92327.0,1.55425]
[1735607881020,0.3618,92328.0,92327.0,1.55425]
[1735607881821,0.3618,92328.0,92327.0,1.5]
[1735607882022,0.001,92328.0,92327.0,1.5]
[1735607882524,0.001,92328.0,92327.0,1.502]
[1735607883412,0.37177637,92340.0,92327.0,1.501]
[1735607883413,0.42601837,92340.0,92327.0,1.501]
[1735607883617,0.054243,92339.0,92328.0,0.054249]
[1735607883818,0.054243,92338.0,92328.0,0.054249]
[1735607884925,0.48462719,92340.0,92328.0,0.054249]
[1735607885129,0.48462719,92340.0,92327.0,1.50156]
[1735607885130,0.48462719,92340.0,92336.0,0.19491302]
[1735607885426,0.054244,92337.0,92336.0,0.19491302]
[1735607886229,0.48462719,92340.0,92334.0,0.19491302]
[1735607886527,0.054245,92335.0,92334.0,0.19491302]
[1735607887819,0.054245,92335.0,92330.0,0.19491302]
[1735607888326,0.054246,92334.0,92330.0,0.19491302]
[1735607888925,0.054246,92334.0,92324.0,0.054251]
[1735607889919,0.3608,92338.0,92323.0,1.57564]
[1735607889920,0.054251,92325.0,92323.0,0.07564]
[1735607890120,0.054251,92325.0,92323.0,0.075]
[1735607891325,0.054251,92325.0,92324.0,0.002]
[1735607891727,0.354251,92325.0,92324.0,0.002]
[1735607891916,0.05426,92309.0,92308.0,0.26791302]
[1735607893031,0.05426,92309.0,92308.0,0.073]
[1735607895421,0.05426,92309.0,92308.0,1.573]
[1735607896125,0.05526,92309.0,92308.0,1.573]
[1735607896527,0.05426,92309.0,92308.0,1.573]
[1735607896731,0.3608,92328.0,92308.0,1.573]
[1735607897033,0.19413112,92329.0,92322.0,0.3608]
[1735607897332,0.24838012,92329.0,92323.0,0.0723]
[1735607897529,0.19413112,92329.0,92325.0,0.05425]
[1735607897723,0.19413112,92329.0,92326.0,0.0728]
[1735607898140,0.054247,92333.0,92326.0,0.0728]
[1735607898331,0.01085673,92333.0,92332.0,0.3608]
[1735607898532,0.24837312,92341.0,92332.0,0.3608]
[1735607899330,0.054242,92341.0,92332.0,0.3608]
[1735607899543,0.003,92333.0,92332.0,0.3608]
[1735607899838,0.01176097,92341.0,92332.0,0.3608]
[1735607900028,0.01176097,92341.0,92338.0,0.054243]
[1735607900231,0.01476097,92341.0,92338.0,0.054243]
[1735607900727,0.003,92333.0,92332.0,0.415047]
[1735607901035,0.001,92341.0,92338.0,0.054243]
[1735607901341,0.48588,92350.0,92340.0,0.3608]
[1735607901640,0.48588,92350.0,92340.0,0.47365082]
[1735607901935,0.48588,92350.0,92340.0,0.3608]
[1735607902348,0.001,92341.0,92340.0,0.3608]
[1735607902832,0.68001112,92350.0,92340.0,0.3608]
[1735607903024,0.68101112,92350.0,92340.0,0.3688]
[1735607903532,0.001,92341.0,92340.0,0.425042]
[1735607904534,0.48588,92350.0,92349.0,0.054237]
[1735607904730,0.19413112,92351.0,92349.0,0.415037]
[1735607905126,0.19413112,92351.0,92350.0,0.1462]
[1735607905329,0.19413112,92355.0,92351.0,0.054236]
[1735607906134,0.054235,92352.0,92350.0,0.14676]
[1735607906323,0.054235,92352.0,92350.0,0.0789]
[1735607906826,0.054235,92352.0,92350.0,0.0749]
[1735607907025,0.054235,92352.0,92351.0,0.003]
[1735607907533,0.054235,92352.0,92350.0,0.0779]
[1735607907926,0.054235,92352.0,92351.0,0.001]
[1735607908734,0.054243,92339.0,92337.0,0.0753]
[1735607909638,0.054246,92334.0,92322.0,0.3608]
[1735607909940,0.415046,92334.0,92323.0,0.1448]
[1735607910140,0.415046,92334.0,92324.0,0.054251]
[1735607910438,0.3608,92344.0,92335.0,0.054245]
[1735607910632,0.3608,92344.0,92330.0,0.3608]
[1735607910633,0.3608,92344.0,92337.0,0.002]
[1735607911132,0.3608,92344.0,92337.0,0.003]
[1735607911533,0.26277667,92344.0,92337.0,0.003]
[1735607911837,0.26277667,92344.0,92337.0,0.002]
[1735607911838,0.054243,92338.0,92337.0,0.002]
[1735607912632,0.001,92334.0,92328.0,1.5]
[1735607913239,0.054244,92337.0,92328.0,1.5]
[1735607913641,0.054245,92336.0,92328.0,1.5]
[1735607914032,0.054245,92336.0,92328.0,1.503]
[1735607914343,0.054245,92336.0,92330.0,0.3608]
[1735607914735,0.26277667,92344.0,92330.0,0.3608]
[1735607914932,0.26277667,92344.0,92338.0,0.054243]
[1735607916442,0.26277667,92344.0,92338.0,0.056243]
[1735607916944,0.26377667,92344.0,92338.0,0.059243]
[1735607917543,0.26277667,92344.0,92338.0,0.058243]
[1735607917943,0.26377667,92344.0,92338.0,0.059243]
[1735607918243,0.26377667,92344.0,92339.0,1.5]
[1735607918933,0.054241,92343.0,92339.0,1.5]
[1735607919731,0.054241,92343.0,92338.0,0.005]
[1735607920035,0.054241,92343.0,92338.0,0.003]
[1735607920237,0.26277667,92344.0,92339.0,1.502]
[1735607920637,0.054241,92342.0,92339.0,1.502]
[1735607921438,0.054241,92342.0,92339.0,1.503]
[1735607922352,0.054241,92342.0,92339.0,1.501]
[1735607922935,0.054241,92342.0,92339.0,1.5]
[1735607923152,0.054241,92342.0,92339.0,1.503]
[1735607923448,0.054241,92342.0,92339.0,1.504]
[1735607923648,0.26277667,92344.0,92339.0,1.504]
[1735607923849,0.054242,92340.0,92339.0,1.504]
[1735607924650,0.054242,92340.0,92339.0,1.501]
[1735607924861,0.054242,92340.0,92339.0,1.502]
[1735607925244,0.054242,92340.0,92339.0,1.501]
[1735607928554,0.26277667,92344.0,92339.0,1.501]
[1735607928750,0.26277667,92344.0,92339.0,1.502]
[1735607929058,0.26277667,92344.0,92339.0,1.556242]
[1735607929444,0.26277667,92344.0,92339.0,1.555242]
[1735607929645,0.22432759,92343.0,92339.0,1.557242]
[1735607930045,0.22432759,92343.0,92339.0,1.554242]
[1735607930246,0.22432759,92343.0,92339.0,1.555242]
[1735607930448,0.22432759,92344.0,92339.0,1.557242]
[1735607931046,0.22432759,92344.0,92339.0,1.559242]
[1735607931650,0.054239,92345.0,92339.0,1.559242]
[1735607931850,0.054239,92345.0,92339.0,1.557242]
[1735607932046,0.054239,92345.0,92339.0,1.559242]
[1735607932446,0.22432759,92346.0,92339.0,1.559242]
[1735607932447,0.22432759,92346.0,92345.0,0.054239]
[1735607933147,0.22432759,92346.0,92339.0,1.556802]
[1735607933349,0.22432759,92346.0,92339.0,1.501]
[1735607933551,0.054242,92340.0,92339.0,0.004]
[1735607934047,0.054242,92340.0,92339.0,0.001]
[1735607934449,0.415042,92340.0,92335.0,0.15805295]
[1735607934649,0.054244,92336.0,92335.0,0.14505295]
[1735607935254,0.415042,92340.0,92323.0,0.0723]
[1735607935552,0.054251,92325.0,92323.0,0.0723]
[1735607936164,0.24858436,92325.0,92323.0,0.0723]
[1735607936959,0.54858436,92325.0,92323.0,0.003]
[1735607937160,0.054264,92303.0,92301.0,0.69078403]
[1735607937360,0.054264,92303.0,92301.0,0.62068403]
[1735607937956,0.054264,92303.0,92301.0,0.25988403]
[1735607938465,0.054265,92301.0,92300.0,0.1]
[1735607939661,0.055265,92301.0,92300.0,0.104]
[1735607941661,0.055265,92301.0,92300.0,1.604]
[1735607942255,0.055265,92301.0,92300.0,1.602]
[1735607943366,0.054265,92301.0,92300.0,1.601]
[1735607946759,0.055265,92301.0,92300.0,1.6]
[1735607947567,0.054257,92315.0,92300.0,1.9608]
[1735607947866,0.11285082,92310.0,92300.0,0.4608]
[1735607948069,0.11285082,92310.0,92300.0,0.1]
[1735607948070,0.054265,92301.0,92300.0,0.1]
[1735607948971,0.054265,92301.0,92300.0,0.101]
[1735607949270,0.055265,92301.0,92300.0,0.101]
[1735607949460,0.055265,92301.0,92300.0,0.1]
[1735607949655,0.057265,92301.0,92300.0,0.1]
[1735607949855,0.06834285,92301.0,92300.0,0.1]
[1735607951467,0.06828793,92301.0,92300.0,0.1]
[1735607952677,0.06528793,92301.0,92300.0,0.1]
[1735607953360,0.06828793,92301.0,92300.0,0.1]
[1735607953973,0.06928793,92301.0,92300.0,0.1]
[1735607955570,0.06528793,92301.0,92300.0,0.1]
[1735607960080,0.06528793,92301.0,92300.0,0.101]
[1735607962776,0.06528793,92301.0,92300.0,0.1]
[1735607963377,0.06628793,92301.0,92300.0,0.1]
[1735607963575,0.06628793,92301.0,92287.0,0.0761]
[1735607963774,0.054273,92288.0,92287.0,0.0761]
[1735607966179,0.054273,92288.0,92287.0,0.0771]
[1735607966985,0.06530055,92288.0,92287.0,0.0771]
[1735607967184,0.054286,92265.0,92262.0,0.3608]
[1735607967375,0.3608,92264.0,92256.0,0.071]
[1735607967571,0.3608,92264.0,92257.0,1.5]
[1735607967779,0.054286,92265.0,92257.0,1.5]
[1735607967987,0.054288,92261.0,92260.0,0.25988403]
[1735607969079,0.054288,92261.0,92256.0,0.071]
[1735607969287,0.11285082,92266.0,92263.0,0.004]
[1735607969787,0.001,92265.0,92263.0,0.006]
[1735607969982,0.054287,92264.0,92263.0,0.002]
[1735607970682,0.05429,92258.0,92257.0,0.3608]
[1735607970885,0.05029,92258.0,92256.0,0.073]
[1735607971085,0.05029,92258.0,92256.0,0.002]
[1735607971293,0.054295,92249.0,92246.0,0.25988403]
[1735607971492,0.052295,92249.0,92246.0,0.25988403]
[1735607971679,0.052295,92249.0,92240.0,0.1486]
[1735607972382,0.10885082,92258.0,92240.0,0.1486]
[1735607973187,0.001,92249.0,92240.0,0.1486]
[1735607973986,0.1199784,92258.0,92248.0,0.3618]
[1735607974182,0.1199784,92258.0,92249.0,1.5]
[1735607974380,0.1199784,92258.0,92256.0,0.3608]
[1735607974381,0.01112758,92258.0,92256.0,0.3608]
[1735607974678,0.48712,92260.0,92257.0,0.0729]
[1735607974880,0.49816919,92260.0,92257.0,0.0729]
[1735607975080,0.49724919,92260.0,92258.0,0.05429]
[1735607975281,0.4862,92260.0,92259.0,1.5]
[1735607975483,0.11285082,92280.0,92259.0,1.5]
[1735607975676,0.11285082,92280.0,92267.0,0.3608]
[1735607975987,0.11285082,92280.0,92268.0,0.0741]
[1735607976182,0.11285082,92280.0,92268.0,0.128384]
[1735607976495,0.22570164,92280.0,92268.0,0.128384]
[1735607976793,0.11385082,92280.0,92268.0,0.0741]
[1735607976981,0.11385082,92280.0,92271.0,0.054282]
[1735607977183,0.11285082,92280.0,92268.0,0.0741]
[1735607977397,0.11285082,92280.0,92279.0,0.3608]
[1735607977579,0.01087657,92281.0,92279.0,0.3608]
[1735607977782,0.11285082,92289.0,92279.0,0.3608]
[1735607977985,0.001,92280.0,92279.0,0.3608]
[1735607979384,0.002,92280.0,92279.0,0.3608]
[1735607979987,0.001,92280.0,92279.0,0.3608]
[1735607980387,0.001,92280.0,92279.0,0.3618]
[1735607980686,0.11285082,92289.0,92279.0,0.3618]
[1735607981788,0.1234824,92290.0,92279.0,0.3618]
[1735607982087,0.1234824,92290.0,92279.0,0.3628]
[1735607982491,0.001,92280.0,92279.0,0.417078]
[1735607982692,0.001,92280.0,92279.0,0.415078]
[1735607982991,0.01063158,92290.0,92284.0,0.054275]
[1735607983296,0.001,92290.0,92289.0,0.3608]
[1735607983685,0.49783395,92296.0,92290.0,0.054271]
[1735607983881,0.49691395,92296.0,92290.0,0.054271]
[1735607984103,0.49691395,92296.0,92291.0,0.072]
[1735607984792,0.48628,92296.0,92292.0,0.05427]
[1735607986004,0.48628,92296.0,92292.0,0.05527]
[1735607986195,0.48628,92296.0,92294.0,0.054269]
[1735607986388,0.0673,92319.0,92306.0,0.054262]
[1735607986900,0.0673,92319.0,92292.0,0.001]
[1735607986901,0.054263,92304.0,92292.0,0.001]
[1735607987087,0.11285082,92302.0,92292.0,0.001]
[1735607987294,0.16711582,92302.0,92292.0,0.001]
[1735607987495,0.054265,92301.0,92292.0,0.001]
[1735607987888,0.054267,92298.0,92292.0,0.001]
[1735607988096,0.054267,92298.0,92291.0,0.4328]
[1735607988097,0.001,92296.0,92291.0,0.4328]
[1735607989187,0.054267,92298.0,92292.0,0.001]
[1735607989397,0.001,92296.0,92292.0,0.001]
[1735607989699,0.001,92296.0,92292.0,0.05527]
[1735607989899,0.001,92296.0,92294.0,0.054269]
[1735607990686,0.0673,92319.0,92291.0,0.4338]
[1735607990890,0.054257,92316.0,92314.0,0.3608]
[1735607991498,0.19424573,92325.0,92321.0,0.054253]
[1735607991690,0.054249,92329.0,92323.0,0.3608]
[1735607992094,0.3608,92324.0,92296.0,0.3608]
[1735607992298,0.054265,92301.0,92296.0,0.3608]
[1735607992603,0.054264,92302.0,92296.0,0.3608]
[1735607993697,0.054265,92301.0,92296.0,0.3608]
[1735607994000,0.0698,92309.0,92294.0,0.25988403]
[1735607994194,0.0698,92309.0,92288.0,0.0663]
[1735607994195,0.05427,92292.0,92288.0,0.0663]
[1735607994397,0.11285082,92300.0,92288.0,0.0663]
[1735607994699,0.05427,92292.0,92288.0,0.0663]
[1735607995001,0.054271,92291.0,92288.0,0.0663]
[1735607995302,0.3608,92294.0,92288.0,0.0663]
[1735607995508,0.054272,92289.0,92287.0,0.3608]
[1735607995805,0.054272,92289.0,92288.0,0.001]
[1735607996397,0.054272,92289.0,92287.0,0.3608]
[1735607996798,0.0689,92288.0,92287.0,0.3608]